lending/lending_fUSD_20250917
["ID","MTS","AMOUNT","RATE_DAILY","PERIOD"]
[385866053,1758070243570,-280.43338726,0.00034999,10]
[385866054,1758070243579,-1000.0,0.00034999,10]
[385866055,1758070243589,-151.0,0.00034999,10]
[385866056,1758070243598,-500.0,0.00034999,10]
[385866057,1758070243607,-1000.0,0.00034999,10]
[385866058,1758070243616,-500.0,0.00034999,10]
[385866059,1758070243626,-151.0,0.00034999,10]
[385866060,1758070243636,-500.0,0.00034999,10]
[385866061,1758070243645,-1000.0,0.00034999,10]
[385866062,1758070243654,-151.0,0.00034999,10]
[385866063,1758070243663,-500.0,0.00034999,10]
[385866064,1758070243672,-1000.0,0.00034999,10]
[385866065,1758070243681,-500.0,0.00034999,10]
[385866066,1758070243690,-500.0,0.00034999,10]
[385866067,1758070243700,-151.0,0.00034999,10]
[385866068,1758070243709,-500.0,0.00034999,10]
[385866069,1758070243719,-500.0,0.00034999,10]
[385866070,1758070243728,-151.0,0.00034999,10]
[385866071,1758070243738,-151.0,0.00034999,10]
[385866072,1758070243747,-500.0,0.00034999,10]
[385866073,1758070243757,-151.0,0.00034999,10]
[385866074,1758070243766,-500.0,0.00034999,10]
[385866075,1758070243776,-500.0,0.00034999,10]
[385866076,1758070243785,-151.0,0.00034999,10]
[385866077,1758070243795,-151.0,0.00034999,10]
[385866078,1758070243804,-151.0,0.00034999,10]
[385866079,1758070243814,-500.0,0.00034999,10]
[385866080,1758070243824,-200.0,0.00034999,10]
[385866081,1758070243833,-250.0,0.00034999,10]
[385866082,1758070243844,-151.0,0.00034999,7]
[385866083,1758070243854,-218.61570057,0.00034999,10]
[385866084,1758070243863,-151.0,0.00034999,10]
[385866085,1758070243873,-8565.75555911,0.00034999,10]
[385866086,1758070244099,-1000.0,0.00034999,10]
[385866087,1758070244109,-151.0,0.00034999,10]
[385866088,1758070244118,-8882.6885148,0.00034999,10]
[385866089,1758070244127,-151.0,0.00034999,10]
[385866090,1758070244137,-1000.0,0.00034999,10]
[385866091,1758070244146,-151.0,0.00034999,10]
[385866092,1758070244155,-1000.0,0.00034999,10]
[385866093,1758070244165,-9211.34798985,0.00034999,10]
[385866094,1758070244174,-248.71531821,0.00034999,10]
[385866095,1758070244183,-151.0,0.00034999,10]
[385866096,1758070244192,-1000.0,0.00034999,10]
[385866097,1758070244202,-9552.16786547,0.00034999,10]
[385866098,1758070244211,-151.0,0.00034999,7]
[385866099,1758070244220,-257.91778498,0.00034999,10]
[385866100,1758070244230,-151.0,0.00034999,10]
[385866101,1758070244239,-1000.0,0.00034999,10]
[385866102,1758070244248,-9905.5980765,0.00034999,10]
[385866103,1758070244261,-151.0,0.00034999,10]
[385866104,1758070244270,-267.46074303,0.00034999,10]
[385866105,1758070244279,-151.0,0.00034999,10]
[385866106,1758070244289,-1000.0,0.00034999,10]
[385866107,1758070244299,-10272.10520533,0.00034999,10]
[385866108,1758070244309,-151.0,0.00034999,10]
[385866109,1758070244318,-151.0,0.00034999,10]
[385866110,1758070244328,-151.0,0.00034999,10]
[385866111,1758070244339,-277.35679052,0.00034999,10]
[385866112,1758070244348,-1000.0,0.00034999,10]
[385866113,1758070244358,-10652.17309792,0.00034999,10]
[385866114,1758070244367,-210.6906711,0.00034999,10]
[385866115,1758070244377,-151.0,0.00034999,10]
[385866116,1758070244386,-287.61899177,0.00034999,10]
[385866117,1758070244395,-151.0,0.00034999,10]
[385866118,1758070244405,-151.0,0.00034999,10]
[385866119,1758070244414,-1000.0,0.00034999,10]
[385866120,1758070244423,-11046.30350255,0.00034999,10]
[385866121,1758070244433,-151.0,0.00034999,10]
[385866122,1758070244442,-298.26089446,0.00034999,10]
[385866123,1758070244451,-151.0,0.00034999,10]
[385866124,1758070244461,-151.0,0.00034999,10]
[385866125,1758070244470,-1000.0,0.00034999,10]
[385866126,1758070244480,-11455.01673214,0.00034999,10]
[385866127,1758070244490,-151.0,0.00034999,10]
[385866128,1758070244499,-309.29654756,0.00034999,10]
[385866129,1758070244508,-151.0,0.00034999,10]
[385866130,1758070244518,-1000.0,0.00034999,10]
[385866131,1758070244528,-11878.85235123,0.00034999,10]
[385866132,1758070244538,-151.0,0.00034999,10]
[385866133,1758070244547,-151.0,0.00034999,10]
[385866134,1758070244556,-320.74051982,0.00034999,10]
[385866135,1758070244566,-151.0,0.00034999,10]
[385866136,1758070244575,-1000.0,0.00034999,10]
[385866137,1758070244585,-8565.75555911,0.00034999,10]
[385866138,1758070244594,-151.0,0.00034999,10]
[385866139,1758070244603,-151.0,0.00034999,10]
[385866140,1758070244613,-151.0,0.00034999,10]
[385866141,1758070244623,-1000.0,0.00034999,10]
[385866142,1758070244632,-151.0,0.00034999,10]
[385866143,1758070244641,-332.60791905,0.00034999,10]
[385866144,1758070244650,-151.0,0.00034999,10]
[385866145,1758070244660,-1000.0,0.00034999,10]
[385866146,1758070244669,-500.0,0.00034999,10]
[385866147,1758070244678,-151.0,0.00034999,10]
[385866148,1758070244688,-151.0,0.00034999,10]
[385866149,1758070244697,-1000.0,0.00034999,10]
[385866150,1758070244706,-344.91441206,0.00034999,10]
[385866151,1758070244716,-151.0,0.00034999,10]
[385866152,1758070244726,-151.0,0.00034999,10]
[385866153,1758070244735,-357.6762453,0.00034999,10]
[385866154,1758070244745,-151.0,0.00034999,10]
[385866155,1758070244754,-151.0,0.00034999,10]
[385866156,1758070244763,-151.0,0.00034999,10]
[385866157,1758070244777,-370.91026638,0.00034999,10]
[385866158,1758070244787,-151.0,0.00034999,10]
[385866159,1758070244797,-151.0,0.00034999,10]
[385866160,1758070244806,-384.63394623,0.00034999,10]
[385866161,1758070244816,-172.29739659,0.00034999,10]
[385866162,1758070244826,-398.86540225,0.00034999,10]
[385866163,1758070244836,-151.0,0.00034999,10]
[385866164,1758070244847,-156.587,0.00034999,10]
[385866165,1758070244857,-151.0,0.00034999,10]
[385866166,1758070244867,-162.380719,0.00034999,10]
[385866167,1758070244877,-168.3888056,0.00034999,10]
[385866168,1758070244887,-174.61919141,0.00034999,10]
[385866169,1758070244898,-151.0,0.00034999,10]
[385866170,1758070244908,-500.0,0.00034999,10]
[385866171,1758070244918,-151.0,0.00034999,10]
[385866172,1758070244928,-500.0,0.00034999,10]
[385866173,1758070244938,-181.08010149,0.00034999,10]
[385866174,1758070244949,-322.6107,0.00034999,10]
[385866175,1758070244960,-151.0,0.00034999,10]
[385866176,1758070244970,-500.0,0.00034999,10]
[385866177,1758070244980,-334.5472959,0.00034999,10]
[385866178,1758070244991,-151.0,0.00034999,10]
[385866179,1758070245000,-187.78006525,0.00034999,10]
[385866180,1758070245010,-500.0,0.00034999,10]
[385866181,1758070245020,-346.92554585,0.00034999,10]
[385866182,1758070245029,-209.33659526,0.00034999,10]
[385866183,1758070245039,-500.0,0.00034999,10]
[385866184,1758070245050,-359.76179104,0.00034999,10]
[385866185,1758070245060,-194.72792766,0.00034999,10]
[385866186,1758070245070,-500.0,0.00034999,10]
[385866187,1758070245079,-373.07297731,0.00034999,10]
[385866188,1758070245091,-201.93286099,0.00034999,10]
[385866189,1758070245101,-386.87667747,0.00034999,10]
[385866190,1758070245111,-209.40437684,0.00034999,10]
[385866191,1758070245122,-500.0,0.00034999,10]
[385866192,1758070245134,-500.0,0.00034999,10]
[385866193,1758070245144,-401.19111454,0.00034999,10]
[385866194,1758070245154,-500.0,0.00034999,10]
[385866195,1758070245164,-151.0,0.00034999,10]
[385866196,1758070245174,-416.03518578,0.00034999,10]
[385866197,1758070245184,-500.0,0.00034999,10]
[385866198,1758070245193,-431.42848765,0.00034999,10]
[385866199,1758070245203,-500.0,0.00034999,10]
[385866200,1758070245212,-201.41466239,0.00034999,10]
[385866201,1758070245221,-500.0,0.00034999,10]
[385866202,1758070245231,-500.0,0.00034999,10]
[385866203,1758070245241,-500.0,0.00034999,10]
[385866204,1758070245251,-250.0,0.00034999,10]
[385866205,1758070245263,-151.0,0.00034999,7]
[385866206,1758070245272,-250.0,0.00034999,10]
[385866207,1758070245281,-500.0,0.00034999,10]
[385866208,1758070245290,-250.0,0.00034999,10]
[385866209,1758070245300,-500.0,0.00034999,10]
[385866210,1758070245309,-250.0,0.00034999,10]
[385866211,1758070245318,-500.0,0.00034999,10]
[385866212,1758070245327,-250.0,0.00034999,10]
[385866213,1758070245336,-500.0,0.00034999,10]
[385866214,1758070245346,-250.0,0.00034999,10]
[385866215,1758070245355,-250.0,0.00034999,10]
[385866216,1758070245365,-500.0,0.00034999,10]
[385866217,1758070245374,-250.0,0.00034999,10]
[385866218,1758070245383,-500.0,0.00034999,10]
[385866219,1758070245393,-500.0,0.00034999,10]
[385866220,1758070245402,-250.0,0.00034999,10]
[385866221,1758070245411,-500.0,0.00034999,10]
[385866222,1758070245420,-500.0,0.00034999,10]
[385866223,1758070245430,-500.0,0.00034999,10]
[385866224,1758070245439,-500.0,0.00034999,10]
[385866225,1758070245449,-500.0,0.00034999,10]
[385866226,1758070245459,-500.0,0.00034999,10]
[385866227,1758070245468,-444.12776099,0.00034999,10]
[385866228,1758070245478,-151.0,0.00034999,7]
[385866229,1758070245487,-151.0,0.00034999,7]
[385866230,1758070245497,-151.0,0.00034999,7]
[385866231,1758070245507,-337.562178,0.00034999,7]
[385866233,1758070245516,-281.325046,0.00034999,7]
[385866234,1758070245526,-151.0,0.00034999,7]
[385866235,1758070245536,-337.562178,0.00034999,7]
[385866236,1758070245545,-337.562178,0.00034999,7]
[385866237,1758070245556,-151.0,0.00034999,7]
[385866238,1758070245566,-337.562178,0.00034999,7]
[385866240,1758070245575,-151.0,0.00034999,7]
[385866242,1758070245585,-151.0,0.00034999,7]
[385866244,1758070245595,-151.0,0.00034999,7]
[385866246,1758070245605,-151.0,0.00034999,7]
[385866248,1758070245614,-151.0,0.00034999,7]
[385866251,1758070245624,-341.147435,0.00034999,7]
[385866253,1758070245634,-341.147435,0.00034999,7]
[385866255,1758070245643,-341.147435,0.00034999,7]
[385866257,1758070245653,-341.147435,0.00034999,7]
[385866259,1758070245663,-151.0,0.00034999,7]
[385866261,1758070245672,-229.819253,0.00034999,7]
[385866263,1758070245682,-229.819253,0.00034999,7]
[385866265,1758070245691,-229.819253,0.00034999,7]
[385866267,1758070245701,-254.586941,0.00034999,7]
[385866269,1758070245710,-229.819253,0.00034999,7]
[385866271,1758070245719,-151.0,0.00034999,7]
[385866273,1758070245728,-151.0,0.00034999,7]
[385866274,1758070245738,-151.0,0.00034999,7]
[385866275,1758070245747,-247.08643,0.00034999,7]
[385866276,1758070245758,-151.0,0.00034999,7]
[385866277,1758070245767,-151.0,0.00034999,7]
[385866278,1758070245776,-748.43027,0.00034999,7]
[385866279,1758070245785,-247.08643,0.00034999,7]
[385866280,1758070245795,-748.43027,0.00034999,7]
[385866281,1758070245804,-247.08643,0.00034999,7]
[385866282,1758070245813,-748.43027,0.00034999,7]
[385866283,1758070245822,-247.08643,0.00034999,7]
[385866284,1758070245832,-748.43027,0.00034999,7]
[385866285,1758070245841,-151.0,0.00034999,7]
[385866286,1758070245850,-151.0,0.00034999,7]
[385866287,1758070245859,-151.0,0.00034999,7]
[385866288,1758070245868,-151.0,0.00034999,7]
[385866289,1758070245878,-155.654142,0.00034999,7]
[385866290,1758070245887,-151.0,0.00034999,7]
[385866291,1758070245896,-151.0,0.00034999,7]
[385866292,1758070245905,-151.0,0.00034999,7]
[385866293,1758070245915,-151.0,0.00034999,7]
[385866294,1758070245924,-151.0,0.00034999,7]
[385866295,1758070245934,-216.353571,0.00034999,7]
[385866296,1758070245944,-151.0,0.00034999,7]
[385866297,1758070245954,-151.0,0.00034999,7]
[385866298,1758070245963,-151.0,0.00034999,7]
[385866299,1758070245973,-151.0,0.00034999,7]
[385866300,1758070245983,-151.0,0.00034999,7]
[385866301,1758070245993,-151.0,0.00034999,7]
[385866302,1758070246002,-1303187.10055584,0.00035,4]
[385866304,1758070246584,-38890.31658401,0.00035,4]
[385866305,1758070248074,-521.49905756,0.00032196,2]
[385866306,1758070249019,-376.50094244,0.00032196,2]
[385866307,1758070249029,-560.52305757,0.00032196,2]
[385866308,1758070249042,-617.47694243,0.00032196,2]
[385866309,1758070249052,-543.08,0.00033947,2]
[385866310,1758070249062,-151.0,0.00034979,7]
[385866311,1758070249072,-151.0,0.00034979,7]
[385866312,1758070249082,-151.0,0.00034999,7]
[385866313,1758070249092,-2304.2114075,0.00035,4]
[385866314,1758070249105,-1102.3,0.00035,4]
[385866316,1758070577615,176.42,0.0001452,2]
[385866341,1758071432638,-300.0,0.00024898,2]
[385866342,1758071432647,-24.57677828,0.00024898,2]
[385866343,1758071432658,-470.11031772,0.00024898,2]
[385866344,1758071432669,-655.6464,0.00024898,2]
[385866345,1758071432684,-49.666504,0.00024898,2]
[385866346,1758071432693,-670.82194934,0.00024899,2]
[385866347,1758071432705,-529.17805066,0.00024899,2]
[385866348,1758071432714,-300.0,0.00024899,2]
[385866349,1758071432723,-9119.2197706,0.000249,2]
[385866350,1758071432733,-587.39249769,0.000249,2]
[385866351,1758071432745,-4346.06524716,0.000249,2]
[385866352,1758071432753,-400.0,0.00026977,2]
[385866353,1758071432763,-1173.7190659,0.00027037,2]
[385866354,1758071432772,-1200.0,0.00027098,2]
[385866355,1758071432781,-160.0,0.00027116,2]
[385866356,1758071432790,-160.0,0.00027116,2]
[385866357,1758071432799,-515.95536276,0.00027116,2]
[385866358,1758071432807,-506.38049734,0.00027137,2]
[385866359,1758071432830,-45.61950266,0.00027137,2]
[385866360,1758071432839,-9096.2,0.00027137,5]
[385866361,1758071432848,-8518.96250387,0.00027137,2]
[385866362,1758071432858,-1481.02749613,0.00027137,2]
[385866363,1758071432867,-3558.79666105,0.00027137,2]
[385866364,1758071432878,-515.30333895,0.00027137,2]
[385866365,1758071432887,-3118.62,0.00027137,2]
[385866366,1758071432896,-5485.53458435,0.00027137,2]
[385866367,1758071432915,-759.09317062,0.00027137,2]
[385866368,1758071432926,-3755.36224503,0.00027137,2]
[385866369,1758071432935,-150.99,0.00027137,2]
[385866370,1758071432944,-999.99,0.00027162,2]
[385866371,1758071432953,-304.87,0.00027162,2]
[385866372,1758071432962,-1157.68,0.00027162,2]
[385866373,1758071432971,-9999.99,0.00027162,2]
[385866374,1758071432980,-151.46,0.00027162,7]
[385866375,1758071432989,-151.46,0.00028399,30]
[385866376,1758071432998,-200.0,0.0002904,2]
[385866377,1758071433008,-500.0,0.00029283,5]
[385866378,1758071433017,-500.0,0.000296,5]
[385866379,1758071433026,-151.46,0.00029636,30]
[385866380,1758071433039,-500.0,0.000297,5]
[385866381,1758071433049,-6990.05273063,0.0003,30]
[385866382,1758071433060,-5254.00844018,0.0003,30]
[385866383,1758071433071,-2630.09924188,0.0003,30]
[385866384,1758071433085,-12875.28673563,0.0003,30]
[385866385,1758071433094,-744.81,0.000301,2]
[385866386,1758071433104,-150.0,0.00030179,2]
[385866387,1758071433114,-994.775,0.00030388,26]
[385866388,1758071433123,-208.48,0.00030408,2]
[385866389,1758071433132,-5000.0,0.0003041,2]
[385866390,1758071433142,-3000.0,0.00030468,2]
[385866391,1758071433151,-666.0,0.00030482,3]
[385866392,1758071433160,-222.5,0.00030505,2]
[385866393,1758071433169,-169.72,0.0003056,2]
[385866394,1758071433179,-151.46,0.00030873,30]
[385866395,1758071433188,-1229.28,0.00031066,2]
[385866396,1758071433198,-161.12,0.000311,2]
[385866397,1758071433207,-161.0,0.00032,7]
[385866398,1758071433217,-161.0,0.00032,7]
[385866399,1758071433226,-161.0,0.00032,14]
[385866400,1758071433235,-161.0,0.00032,14]
[385866401,1758071433245,-161.0,0.00032,14]
[385866402,1758071433254,-161.0,0.00032,21]
[385866403,1758071433263,-165.36,0.00032,21]
[385866404,1758071433272,-883.65064021,0.00032032,2]
[385866405,1758071433282,-1173.71906589,0.00032032,3]
[385866406,1758071433291,-2122.8508,0.00032032,2]
[385866407,1758071433300,-151.46,0.0003211,30]
[385866408,1758071433309,-30105.0672,0.00032132,2]
[385866409,1758071433319,-1000.0,0.00032132,2]
[385866410,1758071433328,-198.83206603,0.00032195,2]
[385866411,1758071433337,-197.811,0.00032196,2]
[385866412,1758071433346,-150.185,0.00032196,2]
[385866413,1758071433355,-150.0,0.00032196,2]
[385866414,1758071433364,-219.515,0.00032196,2]
[385866415,1758071433374,-291.651,0.00032196,2]
[385866416,1758071433384,-150.0,0.00032196,2]
[385866417,1758071433393,-150.181,0.00032196,2]
[385866418,1758071433402,-3388.0,0.00032196,2]
[385866419,1758071433411,-641.075,0.00032196,2]
[385866420,1758071433421,-755.0,0.00032196,2]
[385866421,1758071433430,-2037.0,0.00032196,2]
[385866422,1758071433439,-602.0,0.00032196,2]
[385866423,1758071433448,-1303.0,0.00032196,2]
[385866424,1758071433458,-568.0,0.00032196,2]
[385866425,1758071433467,-1581.0,0.00032196,2]
[385866426,1758071433476,-813.0,0.00032196,2]
[385866427,1758071433485,-18848.0,0.00032196,2]
[385866428,1758071433494,-8717.06,0.00032232,2]
[385866429,1758071433503,-649.0,0.00032262,2]
[385866430,1758071433513,-883.65064018,0.00032468,2]
[385866431,1758071433522,-1000.0,0.00032876,7]
[385866432,1758071433531,-250.0,0.00032899,2]
[385866433,1758071433540,-883.65064018,0.00032905,2]
[385866434,1758071433549,-250.0,0.00033148,2]
[385866435,1758071433559,-156.69,0.00033175,30]
[385866436,1758071433568,-883.65064018,0.00033341,2]
[385866437,1758071433577,-151.46,0.00033347,30]
[385866438,1758071433586,-1000.0,0.00033424,7]
[385866439,1758071433595,-1000.0,0.00033558,2]
[385866440,1758071433605,-2500.0,0.00033558,2]
[385866441,1758071433614,-985.9779942,0.00033573,2]
[385866442,1758071433624,-150.0,0.0003358,7]
[385866443,1758071433634,-601.0,0.00033646,2]
[385866444,1758071433643,-254.66737023,0.00033658,3]
[385866445,1758071433652,-45601.4199301,0.00033658,3]
[385866446,1758071433661,-191532.1682,0.00033668,2]
[385866447,1758071433671,-186.55226769,0.00033673,5]
[385866448,1758071433680,-883.65064018,0.00033777,2]
[385866449,1758071433690,-208.48,0.00033832,2]
[385866450,1758071433699,-985.97799418,0.00033838,2]
[385866451,1758071433709,-157.49449621,0.00033947,2]
[385866452,1758071433719,-284.19891881,0.00033947,2]
[385866453,1758071433729,-3851.56935598,0.00033949,2]
[385866454,1758071433739,-1000.0,0.00033972,7]
[385866455,1758071433748,-985.97799418,0.00034103,2]
[385866456,1758071433758,-2000.0,0.000342,2]
[385866457,1758071433768,-883.65064018,0.00034214,2]
[385866458,1758071433777,-290.41,0.00034319,60]
[385866459,1758071433787,-1425.0,0.00034333,2]
[385866460,1758071433797,-985.97799418,0.00034368,2]
[385866461,1758071433807,-290.41,0.00034419,60]
[385866462,1758071433816,-160.4017707,0.0003446,7]
[385866463,1758071433826,-15200.47331,0.00034498,3]
[385866464,1758071433835,-1425.0,0.00034498,2]
[385866465,1758071433845,-1054.00008823,0.00034508,5]
[385866466,1758071433854,-290.41,0.00034519,60]
[385866467,1758071433863,-1300.0,0.00034534,7]
[385866468,1758071433872,-151.46,0.00034584,30]
[385866469,1758071433882,-161.0,0.000346,60]
[385866470,1758071433891,-161.0,0.000346,60]
[385866471,1758071433901,-161.0,0.000346,60]
[385866472,1758071433910,-728.05,0.00034603,2]
[385866473,1758071433919,-290.41,0.00034619,60]
[385866474,1758071433929,-985.97799418,0.00034633,2]
[385866475,1758071433939,-883.65064018,0.0003465,2]
[385866476,1758071433949,-200.0,0.000347,12]
[385866477,1758071433958,-290.41,0.00034719,60]
[385866478,1758071433968,-500.0,0.00034728,13]
[385866479,1758071433977,-500.0,0.00034728,13]
[385866480,1758071433987,-500.0,0.00034728,13]
[385866481,1758071433997,-500.0,0.00034728,13]
[385866482,1758071434007,-500.0,0.00034728,13]
[385866483,1758071434016,-500.0,0.00034728,13]
[385866484,1758071434026,-500.0,0.00034728,13]
[385866485,1758071434038,-500.0,0.00034728,13]
[385866486,1758071434047,-168.0,0.00034729,2]
[385866487,1758071434057,-500.0,0.000348,12]
[385866488,1758071434067,-290.41,0.00034819,60]
[385866489,1758071434076,-1000.0,0.00034825,2]
[385866490,1758071434086,-1000.0,0.00034825,2]
[385866491,1758071434096,-1000.0,0.00034825,2]
[385866492,1758071434106,-1000.0,0.00034825,2]
[385866493,1758071434117,-291.03103686,0.00034825,2]
[385866494,1758071434131,-708.96896314,0.00034825,2]
[385866495,1758071434141,-1000.0,0.00034825,2]
[385866496,1758071434150,-297.5627,0.00034825,2]
[385866497,1758071434159,-500.0,0.00034829,120]
[385866498,1758071434168,-150.0,0.00034864,2]
[385866499,1758071434178,-500.0,0.00034864,2]
[385866500,1758071434188,-500.0,0.00034864,2]
[385866501,1758071434198,-828.0,0.00034864,2]
[385866502,1758071434208,-500.0,0.00034864,2]
[385866503,1758071434217,-150.0,0.00034864,2]
[385866504,1758071434226,-150.0,0.00034864,2]
[385866505,1758071434236,-150.0,0.00034864,2]
[385866506,1758071434245,-259.18041001,0.00034864,2]
[385866507,1758071434254,-260.89421384,0.00034864,2]
[385866508,1758071434264,-150.0,0.00034864,2]
[385866509,1758071434273,-500.0,0.00034864,2]
[385866510,1758071434282,-150.0,0.00034864,2]
[385866511,1758071434292,-150.0,0.00034864,2]
[385866512,1758071434301,-500.0,0.00034864,2]
[385866513,1758071434311,-150.0,0.00034864,2]
[385866514,1758071434320,-796.20282658,0.0003489,2]
[385866515,1758071434330,-5000.0,0.0003489,2]
[385866516,1758071434339,-161.90209112,0.00034895,7]
[385866517,1758071434348,-985.97799418,0.00034898,2]
[385866518,1758071434358,-800.0,0.000349,12]
[385866519,1758071434368,-290.41,0.00034919,60]
[385866520,1758071434377,-150.0,0.00034955,2]
[385866521,1758071434386,-259.07612848,0.00034958,2]
[385866522,1758071434396,-30400.94662,0.0003496,3]
[385866523,1758071434406,-330.19506571,0.00034961,2]
[385866524,1758071434415,-401.31400295,0.00034963,2]
[385866525,1758071434424,-472.43294018,0.00034966,2]
[385866526,1758071434434,-543.55187741,0.00034969,2]
[385866527,1758071434443,-400.0,0.0003497,2]
[385866528,1758071434452,-1751.13493435,0.0003497,3]
[385866529,1758071434464,-533.30551326,0.0003497,3]
[385866530,1758071434487,-415.74946361,0.0003497,3]
[385866531,1758071434498,-25936.07241354,0.0003497,3]
[385866532,1758071434521,-1764.68429524,0.0003497,3]
[385866533,1758071434531,-4001.36106843,0.0003497,3]
[385866534,1758071434542,-473.24430998,0.0003497,3]
[385866538,1758071437863,-638.33073606,0.00032231,2]
[385866539,1758071437872,-180.8683536,0.00032231,2]
[385866540,1758071437882,-3179.65484054,0.0003497,3]
[385866541,1758071438027,-5816.42457643,0.0003497,3]
[385866543,1758071440043,-33901.86468652,0.0003497,3]
[385866544,1758071440052,-614.67081464,0.00034972,2]
[385866545,1758071440063,-508.61265225,0.00034973,5]
[385866546,1758071440072,-250.0,0.00034973,5]
[385866547,1758071440082,-685.78975187,0.00034975,2]
[385866548,1758071440091,-11843.1373705,0.00034975,3]
[385866549,1758071440100,-756.9086891,0.00034977,2]
[385866550,1758071440111,-1065.17,0.0003498,120]
[385866551,1758071440120,-828.02762632,0.0003498,2]
[385866552,1758071440128,-12249.16390751,0.0003498,3]
[385866553,1758071440259,-20049.81353583,0.0003498,3]
[385866554,1758071440372,-325.42295744,0.0003498,3]
[385866562,1758071443160,-5657.69544443,0.0003498,3]
[385866563,1758071443171,-8843.34261369,0.0003498,3]
[385866564,1758071443182,-23600.000002,0.0003498,3]
[385866569,1758071445918,-2335.40865361,0.0003498,3]
[385866570,1758071446193,-12521.47997956,0.0003498,3]
[385866571,1758071446252,-2340.64286838,0.0003498,3]
[385866583,1758071588830,560.0,0.0003013,120]
[385866584,1758071643314,153.15,0.00016574,2]
[385866585,1758071643548,153.15,0.00017495,2]
[385866586,1758071643785,153.15,0.00018415,2]
[385866587,1758071644666,153.15,0.00019336,2]
[385866588,1758071685874,250.0,0.00015,2]
[385866592,1758071887854,500.0,0.0002,2]
[385866595,1758072222959,309.505802,0.00030136,120]
[385866601,1758072454127,354.11202238,0.000166,2]
[385866603,1758072472067,58.79497762,0.00013,2]
[385866604,1758072472093,4300.15712296,0.00013,2]
[385866605,1758072477199,1750.65926867,0.000181,2]
[385866607,1758072494915,200.0,0.0001634,2]
[385866608,1758072506348,195.60245505,7.888e-05,2]
[385866610,1758072522876,1760.18873549,0.00010136,2]
[385866611,1758072524983,1542.77097957,0.00019,2]
[385866612,1758072526263,5486.72475714,0.0001,2]
[385866613,1758072615061,156.22,0.00013973,2]
[385866614,1758072615277,156.22,0.00015048,2]
[385866615,1758072615490,156.22,0.00016123,2]
[385866616,1758072615724,156.22,0.00017198,2]
[385866617,1758072615896,156.22,0.00018273,2]
[385866618,1758072617200,-156.22,0.00019348,2]
[385866619,1758072632254,-153.15,0.00020257,2]
[385866621,1758072632265,-156.22,0.00020423,2]
[385866622,1758072632275,-250.0,0.00020717,2]
[385866623,1758072632286,-153.15,0.00021178,2]
[385866624,1758072632297,-156.22,0.00021498,2]
[385866625,1758072632308,-153.15,0.00022098,2]
[385866626,1758072632318,-250.0,0.00022283,2]
[385866627,1758072632328,-156.22,0.00022572,2]
[385866628,1758072632338,-153.15,0.00023019,2]
[385866629,1758072632347,-156.22,0.00023647,2]
[385866630,1758072632357,-1249.62140925,0.000239,2]
[385866631,1758072632367,-153.15,0.0002394,2]
[385866632,1758072632377,-316.0,0.00023998,2]
[385866633,1758072632386,-142.57912956,0.00023998,2]
[385866634,1758072632399,-157.42087044,0.00023998,2]
[385866635,1758072632410,-404.0,0.00023998,2]
[385866636,1758072632420,-207.0,0.00023998,2]
[385866637,1758072632430,-473.1370299,0.00023998,2]